[Event "Late-Titled-Tuesday-Blitz-October-10-2023"]
[Site "Chess.com"]
[Date "2023.10.10"]
[Round "8"]
[White "IMGC"]
[Black "chosenpr"]
[Result "1-0"]
[WhiteElo "2412"]
[BlackElo "2267"]
[TimeControl "180+1"]
[EndTime "15:24:27 PDT"]
[Termination "IMGC won by checkmate"]

1. d4 {[%clk 0:02:59.7]} 1... Nf6 {[%clk 0:02:59.3]} 2. Nf3 {[%clk 0:03:00.3]}
2... e6 {[%clk 0:02:59.7]} 3. e3 {[%clk 0:03:00]} 3... c5 {[%clk 0:02:59.9]} 4.
Be2 {[%clk 0:02:58.9]} 4... b6 {[%clk 0:03:00.4]} 5. O-O {[%clk 0:02:58.7]} 5...
Bb7 {[%clk 0:03:01.1]} 6. b3 {[%clk 0:02:58.5]} 6... cxd4 {[%clk 0:03:01.8]} 7.
exd4 {[%clk 0:02:57.4]} 7... Be7 {[%clk 0:03:02.6]} 8. Bb2 {[%clk 0:02:57.3]}
8... O-O {[%clk 0:03:03.3]} 9. c4 {[%clk 0:02:57.5]} 9... d6 {[%clk 0:03:03.5]}
10. Nc3 {[%clk 0:02:56.2]} 10... Nbd7 {[%clk 0:03:03.7]} 11. h3 {[%clk
0:02:54.2]} 11... Re8 {[%clk 0:03:03.8]} 12. Re1 {[%clk 0:02:54.7]} 12... Rc8
{[%clk 0:03:03.2]} 13. Bd3 {[%clk 0:02:48.1]} 13... Nf8 {[%clk 0:03:02.8]} 14.
Qe2 {[%clk 0:02:45.6]} 14... Ng6 {[%clk 0:03:02.1]} 15. Bxg6 {[%clk 0:02:40.9]}
15... hxg6 {[%clk 0:03:00.2]} 16. Rad1 {[%clk 0:02:41.8]} 16... Qc7 {[%clk
0:02:58.9]} 17. Qe3 {[%clk 0:02:24.2]} 17... a6 {[%clk 0:02:56.3]} 18. Qf4
{[%clk 0:02:22.2]} 18... d5 {[%clk 0:02:47.9]} 19. Ne5 {[%clk 0:02:20.7]} 19...
dxc4 {[%clk 0:02:47.3]} 20. bxc4 {[%clk 0:02:19.3]} 20... b5 {[%clk 0:02:42.7]}
21. cxb5 {[%clk 0:02:13.2]} 21... axb5 {[%clk 0:02:36.4]} 22. Nxb5 {[%clk
0:02:06]} 22... Qc2 {[%clk 0:02:07.6]} 23. Rd2 {[%clk 0:01:58.8]} 23... Qa4
{[%clk 0:02:05]} 24. Nc3 {[%clk 0:01:59]} 24... Qa8 {[%clk 0:02:02.7]} 25. f3
{[%clk 0:01:48.3]} 25... Bb4 {[%clk 0:02:01.5]} 26. Rc2 {[%clk 0:01:47.7]} 26...
Red8 {[%clk 0:01:59.9]} 27. Rd1 {[%clk 0:01:45.7]} 27... Rc7 {[%clk 0:01:51.2]}
28. Nd3 {[%clk 0:01:40.6]} 28... Bd6 {[%clk 0:01:43.1]} 29. Qe3 {[%clk 0:01:40]}
29... Nd5 {[%clk 0:01:34.1]} 30. Qd2 {[%clk 0:01:32.2]} 30... Rdc8 {[%clk
0:01:32.3]} 31. Rdc1 {[%clk 0:01:30.5]} 31... Nb4 {[%clk 0:01:22.7]} 32. Nxb4
{[%clk 0:01:20.7]} 32... Bxb4 {[%clk 0:01:22.8]} 33. Qd3 {[%clk 0:01:16.8]}
33... Ba6 {[%clk 0:01:17.4]} 34. Qe3 {[%clk 0:01:05.3]} 34... Qa7 {[%clk
0:01:04.7]} 35. Qf2 {[%clk 0:00:53.4]} 35... Rc4 {[%clk 0:00:55.2]} 36. Ne4
{[%clk 0:00:49.4]} 36... R8c6 {[%clk 0:00:34.4]} 37. a3 {[%clk 0:00:43.9]} 37...
Ba5 {[%clk 0:00:27.1]} 38. Rxc4 {[%clk 0:00:43.8]} 38... Bxc4 {[%clk 0:00:26.5]}
39. Nc5 {[%clk 0:00:42.4]} 39... Bd5 {[%clk 0:00:21.4]} 40. Bc3 {[%clk 0:00:40]}
40... Bb6 {[%clk 0:00:19.2]} 41. Bb4 {[%clk 0:00:40]} 41... Rc8 {[%clk
0:00:14.6]} 42. Qe3 {[%clk 0:00:39.6]} 42... Qb8 {[%clk 0:00:13]} 43. Kh1 {[%clk
0:00:32.1]} 43... Bc7 {[%clk 0:00:12.6]} 44. Na6 {[%clk 0:00:31.4]} 44... Bf4
{[%clk 0:00:09.8]} 45. Rxc8+ {[%clk 0:00:25.7]} 45... Qxc8 {[%clk 0:00:08.2]}
46. Qxf4 {[%clk 0:00:26.4]} 46... Qxa6 {[%clk 0:00:08.3]} 47. Qd2 {[%clk
0:00:22.6]} 47... Qf1+ {[%clk 0:00:08.2]} 48. Kh2 {[%clk 0:00:23.2]} 48... Qc4
{[%clk 0:00:08.4]} 49. a4 {[%clk 0:00:20.5]} 49... Bc6 {[%clk 0:00:06.8]} 50. a5
{[%clk 0:00:21]} 50... Bb5 {[%clk 0:00:07.2]} 51. Bc3 {[%clk 0:00:20.6]} 51...
Qf1 {[%clk 0:00:07.2]} 52. Qb2 {[%clk 0:00:17.8]} 52... Be2 {[%clk 0:00:07]} 53.
Qb8+ {[%clk 0:00:13.6]} 53... Kh7 {[%clk 0:00:06.6]} 54. Qg3 {[%clk 0:00:14.5]}
54... Qc1 {[%clk 0:00:04.4]} 55. Bb4 {[%clk 0:00:12.7]} 55... Bc4 {[%clk
0:00:03.9]} 56. Bc5 {[%clk 0:00:09.4]} 56... Qa1 {[%clk 0:00:02.4]} 57. Bb6
{[%clk 0:00:09.5]} 57... Bd5 {[%clk 0:00:02.6]} 58. Qh4+ {[%clk 0:00:08.7]}
58... Kg8 {[%clk 0:00:02.4]} 59. Qf4 {[%clk 0:00:09.2]} 59... Qa2 {[%clk
0:00:02.1]} 60. Qb8+ {[%clk 0:00:08.2]} 60... Kh7 {[%clk 0:00:01.8]} 61. Qf4
{[%clk 0:00:09]} 61... Qb2 {[%clk 0:00:02.1]} 62. Kg3 {[%clk 0:00:08.8]} 62...
Kg8 {[%clk 0:00:02.7]} 63. h4 {[%clk 0:00:08.9]} 63... Kh7 {[%clk 0:00:02.6]}
64. Bc5 {[%clk 0:00:07.9]} 64... Qc2 {[%clk 0:00:02.7]} 65. a6 {[%clk
0:00:07.7]} 65... Qa4 {[%clk 0:00:02.9]} 66. a7 {[%clk 0:00:08.2]} 66... Kg8
{[%clk 0:00:02.9]} 67. Qg5 {[%clk 0:00:08.2]} 67... Kh7 {[%clk 0:00:03.3]} 68.
h5 {[%clk 0:00:08.2]} 68... gxh5 {[%clk 0:00:02.1]} 69. Qxh5+ {[%clk 0:00:08.8]}
69... Kg8 {[%clk 0:00:02.8]} 70. Qg5 {[%clk 0:00:09.4]} 70... g6 {[%clk
0:00:03.3]} 71. Bd6 {[%clk 0:00:08.8]} 71... Kh7 {[%clk 0:00:03.6]} 72. Be5
{[%clk 0:00:09.3]} 72... Qxa7 {[%clk 0:00:03.4]} 73. Qh4+ {[%clk 0:00:09.8]}
73... Kg8 {[%clk 0:00:02.6]} 74. Qh8# {[%clk 0:00:10.5]} 1-0

[Event "Late-Titled-Tuesday-Blitz-October-10-2023"]
[Site "Chess.com"]
[Date "2023.10.10"]
[Round "8"]
[White "Ali_rastbod"]
[Black "WPWPWP-2015"]
[Result "1-0"]
[WhiteElo "2753"]
[BlackElo "2537"]
[TimeControl "180+1"]
[EndTime "15:24:59 PDT"]
[Termination "Ali_rastbod won on time"]

1. Nf3 {[%clk 0:03:00.9]} 1... Nf6 {[%clk 0:02:58.5]} 2. g3 {[%clk 0:02:56.7]}
2... d5 {[%clk 0:02:57.8]} 3. Bg2 {[%clk 0:02:57]} 3... Bg4 {[%clk 0:02:57.4]}
4. c4 {[%clk 0:02:56]} 4... e6 {[%clk 0:02:57.1]} 5. Qb3 {[%clk 0:02:56.3]} 5...
Nbd7 {[%clk 0:02:55.7]} 6. cxd5 {[%clk 0:02:53]} 6... exd5 {[%clk 0:02:55.4]} 7.
Qxb7 {[%clk 0:02:51.1]} 7... Bd6 {[%clk 0:02:54.9]} 8. Nd4 {[%clk 0:02:44.7]}
8... O-O {[%clk 0:02:53.5]} 9. Nc3 {[%clk 0:02:35.8]} 9... Nc5 {[%clk
0:02:49.7]} 10. Qb5 {[%clk 0:02:29]} 10... a5 {[%clk 0:02:29.5]} 11. Nxd5 {[%clk
0:02:11.4]} 11... Rb8 {[%clk 0:02:22.1]} 12. Qc4 {[%clk 0:01:20.9]} 12... Nxd5
{[%clk 0:02:21]} 13. Qxd5 {[%clk 0:01:18.1]} 13... Re8 {[%clk 0:02:06.8]} 14.
O-O {[%clk 0:01:12.4]} 14... Qf6 {[%clk 0:01:57.6]} 15. Bf3 {[%clk 0:00:47]}
15... Bd7 {[%clk 0:01:53.4]} 16. d3 {[%clk 0:00:42.5]} 16... h6 {[%clk 0:01:40]}
17. Nc2 {[%clk 0:00:35.8]} 17... Ba4 {[%clk 0:01:25.3]} 18. b3 {[%clk
0:00:34.6]} 18... Bb5 {[%clk 0:01:07.9]} 19. Rb1 {[%clk 0:00:34.2]} 19... Rbd8
{[%clk 0:01:01.3]} 20. Qh5 {[%clk 0:00:32.2]} 20... Re5 {[%clk 0:00:55.5]} 21.
Bb2 {[%clk 0:00:20.7]} 21... Ne6 {[%clk 0:00:34.6]} 22. Bxe5 {[%clk 0:00:17.3]}
22... Bxe5 {[%clk 0:00:35]} 23. a4 {[%clk 0:00:12.7]} 23... Bd7 {[%clk
0:00:32.9]} 24. Ne3 {[%clk 0:00:12.4]} 24... Bd6 {[%clk 0:00:23.7]} 25. Ng4
{[%clk 0:00:12.2]} 25... Qc3 {[%clk 0:00:22.3]} 26. Rfc1 {[%clk 0:00:11.3]}
26... Qd2 {[%clk 0:00:21.5]} 27. Rd1 {[%clk 0:00:11.8]} 27... Qc3 {[%clk
0:00:21.7]} 28. Rbc1 {[%clk 0:00:11.2]} 28... Qb2 {[%clk 0:00:21]} 29. Qxa5
{[%clk 0:00:10.8]} 29... Ng5 {[%clk 0:00:20]} 30. Qd2 {[%clk 0:00:07.9]} 30...
Qxb3 {[%clk 0:00:19.6]} 31. Ne3 {[%clk 0:00:07.8]} 31... Qxa4 {[%clk 0:00:18.5]}
32. Bg2 {[%clk 0:00:07.2]} 32... Be6 {[%clk 0:00:13.4]} 33. Nc4 {[%clk
0:00:07.5]} 33... Bb4 {[%clk 0:00:12.7]} 34. Qc2 {[%clk 0:00:07.8]} 34... Qd7
{[%clk 0:00:12]} 35. Ne5 {[%clk 0:00:07.2]} 35... Qd6 {[%clk 0:00:11.8]} 36. Nc6
{[%clk 0:00:07.6]} 36... Re8 {[%clk 0:00:11.1]} 37. Nxb4 {[%clk 0:00:07.8]}
37... Qxb4 {[%clk 0:00:11.4]} 38. Qxc7 {[%clk 0:00:08.3]} 38... Qb2 {[%clk
0:00:10.6]} 39. Qc2 {[%clk 0:00:08.3]} 39... Qe5 {[%clk 0:00:10.5]} 40. d4
{[%clk 0:00:07.4]} 40... Qf6 {[%clk 0:00:09.4]} 41. f4 {[%clk 0:00:07.2]} 41...
Nh7 {[%clk 0:00:08.7]} 42. e4 {[%clk 0:00:07.8]} 42... Bg4 {[%clk 0:00:08.5]}
43. Rd2 {[%clk 0:00:06.5]} 43... Nf8 {[%clk 0:00:08.5]} 44. e5 {[%clk
0:00:06.4]} 44... Qb6 {[%clk 0:00:08.6]} 45. Qc5 {[%clk 0:00:06.9]} 45... Qa6
{[%clk 0:00:07.9]} 46. d5 {[%clk 0:00:07.1]} 46... Rc8 {[%clk 0:00:05.5]} 47.
Qxc8 {[%clk 0:00:03.3]} 47... Bxc8 {[%clk 0:00:05.6]} 48. d6 {[%clk 0:00:03.9]}
48... Bd7 {[%clk 0:00:04.9]} 49. h3 {[%clk 0:00:04.3]} 49... g6 {[%clk 0:00:05]}
50. Kh2 {[%clk 0:00:04.6]} 50... h5 {[%clk 0:00:05.3]} 51. Rc7 {[%clk
0:00:04.8]} 51... Qa5 {[%clk 0:00:05.5]} 52. Rf2 {[%clk 0:00:04.2]} 52... h4
{[%clk 0:00:05.6]} 53. gxh4 {[%clk 0:00:04.2]} 53... Qe1 {[%clk 0:00:05.2]} 54.
Rf3 {[%clk 0:00:03.7]} 54... Qxh4 {[%clk 0:00:04.9]} 55. Rf1 {[%clk 0:00:03.9]}
55... Qd8 {[%clk 0:00:03.9]} 56. Kg1 {[%clk 0:00:03.9]} 56... Qh4 {[%clk
0:00:03.9]} 57. Kh2 {[%clk 0:00:03.7]} 57... Qd8 {[%clk 0:00:03.8]} 58. Rfc1
{[%clk 0:00:04.4]} 58... Kg7 {[%clk 0:00:04]} 59. R1c4 {[%clk 0:00:04.3]} 59...
Qe8 {[%clk 0:00:03.7]} 60. Rd4 {[%clk 0:00:04.1]} 60... Qd8 {[%clk 0:00:04]} 61.
Rc3 {[%clk 0:00:04.6]} 61... Ne6 {[%clk 0:00:04.1]} 62. Rb4 {[%clk 0:00:04.4]}
62... Qh4 {[%clk 0:00:03.9]} 63. Rf3 {[%clk 0:00:04.1]} 63... Nf8 {[%clk
0:00:03.4]} 64. Rfb3 {[%clk 0:00:03.3]} 64... Be6 {[%clk 0:00:03.4]} 65. f5
{[%clk 0:00:03.4]} 65... gxf5 {[%clk 0:00:03.2]} 66. Rxh4 {[%clk 0:00:03.1]}
66... Ng6 {[%clk 0:00:02.5]} 67. Rhb4 {[%clk 0:00:03.2]} 67... Nxe5 {[%clk
0:00:02.4]} 68. Re3 {[%clk 0:00:03.1]} 68... Nd7 {[%clk 0:00:02.2]} 69. Rf4
{[%clk 0:00:03.3]} 69... Kf6 {[%clk 0:00:02.3]} 70. Rf1 {[%clk 0:00:04]} 70...
Ne5 {[%clk 0:00:02.3]} 71. Ree1 {[%clk 0:00:04.2]} 71... Nc4 {[%clk 0:00:02.6]}
72. Rd1 {[%clk 0:00:03.7]} 72... Ne3 {[%clk 0:00:02.8]} 73. Rfe1 {[%clk
0:00:04.3]} 73... Nxd1 {[%clk 0:00:02]} 74. Rxd1 {[%clk 0:00:05.2]} 74... Bd7
{[%clk 0:00:02.4]} 75. Kg3 {[%clk 0:00:05.2]} 75... Ke5 {[%clk 0:00:02.7]} 76.
Re1+ {[%clk 0:00:05.1]} 76... Kxd6 {[%clk 0:00:03]} 77. Kf4 {[%clk 0:00:06]}
77... f6 {[%clk 0:00:03]} 78. Bf3 {[%clk 0:00:06.3]} 78... Be6 {[%clk 0:00:03]}
79. h4 {[%clk 0:00:07.2]} 79... Bf7 {[%clk 0:00:02.7]} 80. Kxf5 {[%clk
0:00:07.6]} 80... Bg8 {[%clk 0:00:02.5]} 81. Kxf6 {[%clk 0:00:08]} 1-0

[Event "Late-Titled-Tuesday-Blitz-October-10-2023"]
[Site "Chess.com"]
[Date "2023.10.10"]
[Round "8"]
[White "alexrustemov"]
[Black "Mackster23"]
[Result "1/2-1/2"]
[WhiteElo "2823"]
[BlackElo "2675"]
[TimeControl "180+1"]
[EndTime "15:25:10 PDT"]
[Termination "Game drawn by repetition"]

1. d4 {[%clk 0:03:00.9]} 1... Nf6 {[%clk 0:02:58.4]} 2. c4 {[%clk 0:03:01.2]}
2... g6 {[%clk 0:02:58]} 3. Nf3 {[%clk 0:03:01.5]} 3... Bg7 {[%clk 0:02:58.3]}
4. g3 {[%clk 0:03:02.1]} 4... O-O {[%clk 0:02:58.6]} 5. Bg2 {[%clk 0:03:02.8]}
5... d6 {[%clk 0:02:58.4]} 6. Nc3 {[%clk 0:03:03.4]} 6... Nbd7 {[%clk
0:02:58.7]} 7. O-O {[%clk 0:03:04.1]} 7... e5 {[%clk 0:02:59.2]} 8. e4 {[%clk
0:03:04.6]} 8... c6 {[%clk 0:02:59.7]} 9. h3 {[%clk 0:03:04.5]} 9... Qa5 {[%clk
0:03:00.2]} 10. Be3 {[%clk 0:03:00.8]} 10... exd4 {[%clk 0:03:00.2]} 11. Nxd4
{[%clk 0:02:59.1]} 11... Nb6 {[%clk 0:03:00.1]} 12. Qd3 {[%clk 0:02:50.4]} 12...
Qa6 {[%clk 0:02:54.1]} 13. b3 {[%clk 0:02:48.2]} 13... d5 {[%clk 0:02:54.2]} 14.
exd5 {[%clk 0:02:41.1]} 14... Nbxd5 {[%clk 0:02:53.8]} 15. Nxd5 {[%clk
0:02:29.4]} 15... Nxd5 {[%clk 0:02:45.7]} 16. Bd2 {[%clk 0:02:28.1]} 16... c5
{[%clk 0:02:23.3]} 17. Bxd5 {[%clk 0:02:16.3]} 17... Bxd4 {[%clk 0:02:22.4]} 18.
Bc3 {[%clk 0:02:00.9]} 18... Bxh3 {[%clk 0:02:02.1]} 19. Rfe1 {[%clk 0:02:00.5]}
19... Bf5 {[%clk 0:02:00.9]} 20. Qd2 {[%clk 0:01:59]} 20... Qf6 {[%clk 0:01:57]}
21. Rac1 {[%clk 0:01:53.1]} 21... Rab8 {[%clk 0:01:44.3]} 22. Red1 {[%clk
0:01:47.6]} 22... Bxc3 {[%clk 0:01:39.2]} 23. Rxc3 {[%clk 0:01:41.2]} 23... b6
{[%clk 0:01:30.3]} 24. Re3 {[%clk 0:01:39.5]} 24... Rfe8 {[%clk 0:01:26.5]} 25.
Rde1 {[%clk 0:01:39.9]} 25... Rxe3 {[%clk 0:01:16.3]} 26. Qxe3 {[%clk
0:01:40.8]} 26... h5 {[%clk 0:01:05.3]} 27. Qe7 {[%clk 0:01:39.3]} 27... Kg7
{[%clk 0:01:05.1]} 28. Qxa7 {[%clk 0:01:35.1]} 28... Rf8 {[%clk 0:00:59.5]} 29.
Qe7 {[%clk 0:01:33.2]} 29... h4 {[%clk 0:00:38.2]} 30. gxh4 {[%clk 0:01:20.5]}
30... Rh8 {[%clk 0:00:37]} 31. Qxf6+ {[%clk 0:01:16]} 31... Kxf6 {[%clk
0:00:37.9]} 32. a3 {[%clk 0:00:54.6]} 32... Be6 {[%clk 0:00:16.7]} 33. Bxe6
{[%clk 0:00:52.7]} 33... fxe6 {[%clk 0:00:17.6]} 34. Re4 {[%clk 0:00:51.8]}
34... Kf5 {[%clk 0:00:17.7]} 35. f3 {[%clk 0:00:52.1]} 35... Rd8 {[%clk
0:00:17.2]} 36. Kf2 {[%clk 0:00:49.9]} 36... Rd3 {[%clk 0:00:15.1]} 37. Re3
{[%clk 0:00:49.6]} 37... Rd2+ {[%clk 0:00:14.5]} 38. Kg3 {[%clk 0:00:48.6]}
38... Rd1 {[%clk 0:00:10.8]} 39. b4 {[%clk 0:00:44.5]} 39... Rg1+ {[%clk
0:00:09.5]} 40. Kf2 {[%clk 0:00:43.6]} 40... Rc1 {[%clk 0:00:09.7]} 41. Re4
{[%clk 0:00:34.4]} 41... Rc3 {[%clk 0:00:08]} 42. bxc5 {[%clk 0:00:29.6]} 42...
bxc5 {[%clk 0:00:08.9]} 43. Rg4 {[%clk 0:00:29.8]} 43... Kf6 {[%clk 0:00:03.5]}
44. Rg5 {[%clk 0:00:23.2]} 44... Rxc4 {[%clk 0:00:03.1]} 45. Kg3 {[%clk
0:00:18.9]} 45... e5 {[%clk 0:00:03.4]} 46. Rg4 {[%clk 0:00:18.5]} 46... Rc3
{[%clk 0:00:02.5]} 47. Ra4 {[%clk 0:00:17.9]} 47... c4 {[%clk 0:00:02]} 48. Kg4
{[%clk 0:00:17.6]} 48... Rc1 {[%clk 0:00:02.1]} 49. Ra6+ {[%clk 0:00:17.6]}
49... Kf7 {[%clk 0:00:02.7]} 50. Rc6 {[%clk 0:00:13.9]} 50... Rc3 {[%clk
0:00:01.9]} 51. a4 {[%clk 0:00:13.3]} 51... Rc1 {[%clk 0:00:02.4]} 52. Kg3
{[%clk 0:00:12.4]} 52... Ra1 {[%clk 0:00:02.7]} 53. Rxc4 {[%clk 0:00:11.9]}
53... Kf6 {[%clk 0:00:03.4]} 54. Kf2 {[%clk 0:00:10]} 54... Kf5 {[%clk
0:00:03.9]} 55. Ke3 {[%clk 0:00:10.1]} 55... Ra3+ {[%clk 0:00:04.5]} 56. Ke2
{[%clk 0:00:10.5]} 56... Ra2+ {[%clk 0:00:05.1]} 57. Kd3 {[%clk 0:00:10.9]}
57... Ra3+ {[%clk 0:00:05.9]} 58. Kc2 {[%clk 0:00:11.3]} 58... Rxf3 {[%clk
0:00:06]} 59. Kb2 {[%clk 0:00:10.5]} 59... Rf2+ {[%clk 0:00:05.9]} 60. Kb3
{[%clk 0:00:10.6]} 60... Rf1 {[%clk 0:00:06.1]} 61. Rc2 {[%clk 0:00:08.9]} 61...
e4 {[%clk 0:00:05]} 62. Ra2 {[%clk 0:00:08.4]} 62... Rb1+ {[%clk 0:00:05.3]} 63.
Kc4 {[%clk 0:00:08.4]} 63... Rb7 {[%clk 0:00:04.6]} 64. a5 {[%clk 0:00:08.8]}
64... Kg4 {[%clk 0:00:04.4]} 65. a6 {[%clk 0:00:08.7]} 65... Ra7 {[%clk
0:00:04.4]} 66. Kb5 {[%clk 0:00:09]} 66... Kxh4 {[%clk 0:00:04.4]} 67. Re2
{[%clk 0:00:09]} 67... Kg3 {[%clk 0:00:03]} 68. Rxe4 {[%clk 0:00:09.1]} 68... g5
{[%clk 0:00:03.3]} 69. Kb6 {[%clk 0:00:08.8]} 69... Ra8 {[%clk 0:00:03.1]} 70.
Kb7 {[%clk 0:00:07.5]} 70... Rg8 {[%clk 0:00:02.7]} 71. Rc4 {[%clk 0:00:07.3]}
71... Rg7+ {[%clk 0:00:02]} 72. Rc7 {[%clk 0:00:07.5]} 72... Rg8 {[%clk
0:00:02.5]} 73. a7 {[%clk 0:00:07.9]} 73... g4 {[%clk 0:00:02.7]} 74. Rc8 {[%clk
0:00:08.4]} 74... Rg7+ {[%clk 0:00:03.2]} 75. Rc7 {[%clk 0:00:06]} 75... Rg8
{[%clk 0:00:03.9]} 76. Rc8 {[%clk 0:00:03.6]} 76... Rg7+ {[%clk 0:00:04.3]} 77.
Kb6 {[%clk 0:00:04.3]} 77... Rxa7 {[%clk 0:00:04.4]} 78. Kxa7 {[%clk 0:00:05]}
78... Kh2 {[%clk 0:00:05.1]} 79. Rh8+ {[%clk 0:00:04.8]} 79... Kg2 {[%clk
0:00:05.5]} 80. Kb6 {[%clk 0:00:05.5]} 80... g3 {[%clk 0:00:05.9]} 81. Kc5
{[%clk 0:00:06]} 81... Kf2 {[%clk 0:00:05.3]} 82. Rf8+ {[%clk 0:00:05.2]} 82...
Ke1 {[%clk 0:00:04.8]} 83. Re8+ {[%clk 0:00:04.3]} 83... Kf2 {[%clk 0:00:04.9]}
84. Rf8+ {[%clk 0:00:05]} 84... Ke3 {[%clk 0:00:05.3]} 85. Rg8 {[%clk
0:00:03.9]} 85... Kf2 {[%clk 0:00:05.8]} 86. Kd4 {[%clk 0:00:04.4]} 86... g2
{[%clk 0:00:06.3]} 87. Rf8+ {[%clk 0:00:05.3]} 87... Ke2 {[%clk 0:00:06.4]} 88.
Rg8 {[%clk 0:00:05.6]} 88... Kf2 {[%clk 0:00:06.8]} 89. Rf8+ {[%clk 0:00:06]}
89... Ke2 {[%clk 0:00:07.3]} 90. Re8+ {[%clk 0:00:06]} 90... Kf2 {[%clk
0:00:07.9]} 91. Rf8+ {[%clk 0:00:06]} 1/2-1/2

[Event "Late-Titled-Tuesday-Blitz-October-10-2023"]
[Site "Chess.com"]
[Date "2023.10.10"]
[Round "9"]
[White "orestn"]
[Black "Horokoskii"]
[Result "1-0"]
[WhiteElo "2395"]
[BlackElo "2117"]
[TimeControl "180+1"]
[EndTime "15:35:03 PDT"]
[Termination "orestn won by resignation"]

1. e4 {[%clk 0:02:55.7]} 1... e6 {[%clk 0:02:58.6]} 2. d4 {[%clk 0:02:55.3]}
2... d5 {[%clk 0:02:59.3]} 3. e5 {[%clk 0:02:55.8]} 3... c5 {[%clk 0:02:59.2]}
4. c3 {[%clk 0:02:56.7]} 4... Nc6 {[%clk 0:02:59.8]} 5. Nf3 {[%clk 0:02:57.5]}
5... Bd7 {[%clk 0:02:59.2]} 6. Bd3 {[%clk 0:02:57.6]} 6... Qb6 {[%clk
0:02:55.1]} 7. O-O {[%clk 0:02:57.7]} 7... cxd4 {[%clk 0:02:54.9]} 8. a3 {[%clk
0:02:57.9]} 8... Nge7 {[%clk 0:02:51.2]} 9. b4 {[%clk 0:02:57.3]} 9... Nf5
{[%clk 0:02:44.8]} 10. Bxf5 {[%clk 0:02:48.6]} 10... exf5 {[%clk 0:02:45.7]} 11.
cxd4 {[%clk 0:02:48.8]} 11... Rc8 {[%clk 0:02:44.4]} 12. Nc3 {[%clk 0:02:48.3]}
12... Be6 {[%clk 0:02:44.2]} 13. Na4 {[%clk 0:02:46.8]} 13... Qb5 {[%clk
0:02:41.1]} 14. Nc5 {[%clk 0:02:45.7]} 14... b6 {[%clk 0:02:37.8]} 15. Nxe6
{[%clk 0:02:45.1]} 15... fxe6 {[%clk 0:02:37.3]} 16. Ng5 {[%clk 0:02:43.6]}
16... Nd8 {[%clk 0:02:26.8]} 17. Be3 {[%clk 0:02:38]} 17... Be7 {[%clk
0:02:25.1]} 18. Qh5+ {[%clk 0:02:30.4]} 18... g6 {[%clk 0:02:24.7]} 19. Qh6
{[%clk 0:02:30.5]} 19... Bf8 {[%clk 0:02:21.6]} 20. Qh3 {[%clk 0:02:24.2]} 20...
Nf7 {[%clk 0:02:16.6]} 21. Nxe6 {[%clk 0:02:20.3]} 21... Qd3 {[%clk 0:02:09.1]}
22. Rac1 {[%clk 0:02:13.9]} 22... Rxc1 {[%clk 0:02:07.6]} 23. Rxc1 {[%clk
0:02:12.6]} 23... Be7 {[%clk 0:02:00.9]} 24. Nc7+ {[%clk 0:02:11.3]} 24... Kd7
{[%clk 0:01:58.7]} 25. Nxd5 {[%clk 0:02:11.7]} 1-0

[Event "Late-Titled-Tuesday-Blitz-October-10-2023"]
[Site "Chess.com"]
[Date "2023.10.10"]
[Round "9"]
[White "Javylavilla"]
[Black "ferrufino64"]
[Result "1-0"]
[WhiteElo "2342"]
[BlackElo "2204"]
[TimeControl "180+1"]
[EndTime "15:35:14 PDT"]
[Termination "Javylavilla won by resignation"]

1. e4 {[%clk 0:02:59.2]} 1... c5 {[%clk 0:02:47.2]} 2. Nf3 {[%clk 0:02:58.5]}
2... d6 {[%clk 0:02:45.7]} 3. d4 {[%clk 0:02:57.2]} 3... cxd4 {[%clk 0:02:46.6]}
4. Nxd4 {[%clk 0:02:57.7]} 4... Nf6 {[%clk 0:02:47.1]} 5. Nc3 {[%clk 0:02:58]}
5... g6 {[%clk 0:02:47.1]} 6. Be3 {[%clk 0:02:57.2]} 6... Nc6 {[%clk 0:02:47.2]}
7. f3 {[%clk 0:02:56.5]} 7... Bg7 {[%clk 0:02:47.6]} 8. Qd2 {[%clk 0:02:56.9]}
8... O-O {[%clk 0:02:45]} 9. Bc4 {[%clk 0:02:56.7]} 9... Nxd4 {[%clk 0:02:45.1]}
10. Bxd4 {[%clk 0:02:54.3]} 10... Be6 {[%clk 0:02:45.6]} 11. Bxe6 {[%clk
0:02:49.2]} 11... fxe6 {[%clk 0:02:46.5]} 12. O-O-O {[%clk 0:02:48]} 12... Qa5
{[%clk 0:02:44.1]} 13. h4 {[%clk 0:02:46.3]} 13... Nh5 {[%clk 0:02:38]} 14. Bxg7
{[%clk 0:02:45]} 14... Kxg7 {[%clk 0:02:37.9]} 15. g4 {[%clk 0:02:43.7]} 15...
Ng3 {[%clk 0:02:37.2]} 16. Rhg1 {[%clk 0:02:38.7]} 16... Rxf3 {[%clk 0:02:36.7]}
17. h5 {[%clk 0:02:31.3]} 17... Rc8 {[%clk 0:02:31.1]} 18. Qd4+ {[%clk
0:02:24.5]} 18... e5 {[%clk 0:02:29.8]} 19. Qd5 {[%clk 0:02:10.6]} 19... Rcxc3
{[%clk 0:01:54.6]} 20. Qxa5 {[%clk 0:02:08.9]} 1-0

[Event "Late-Titled-Tuesday-Blitz-October-10-2023"]
[Site "Chess.com"]
[Date "2023.10.10"]
[Round "9"]
[White "koncheto"]
[Black "Byniolus"]
[Result "1-0"]
[WhiteElo "2530"]
[BlackElo "2694"]
[TimeControl "180+1"]
[EndTime "15:35:29 PDT"]
[Termination "koncheto won by resignation"]

1. e4 {[%clk 0:03:00.9]} 1... d6 {[%clk 0:02:59.5]} 2. d4 {[%clk 0:03:00.5]}
2... e6 {[%clk 0:03:00.1]} 3. Bd3 {[%clk 0:02:59.1]} 3... c6 {[%clk 0:03:00.6]}
4. c3 {[%clk 0:02:59.4]} 4... f6 {[%clk 0:03:00.9]} 5. f4 {[%clk 0:02:59.2]}
5... b6 {[%clk 0:03:01.5]} 6. Nf3 {[%clk 0:02:59.3]} 6... a6 {[%clk 0:03:02.1]}
7. O-O {[%clk 0:02:57.8]} 7... g6 {[%clk 0:03:02.5]} 8. Be3 {[%clk 0:02:53.4]}
8... Ne7 {[%clk 0:03:02]} 9. Qe2 {[%clk 0:02:45.3]} 9... h6 {[%clk 0:03:01.4]}
10. Nbd2 {[%clk 0:02:36.5]} 10... Bg7 {[%clk 0:02:59.9]} 11. e5 {[%clk
0:02:32.3]} 11... dxe5 {[%clk 0:02:57.8]} 12. dxe5 {[%clk 0:02:31.6]} 12... f5
{[%clk 0:02:58.3]} 13. Nc4 {[%clk 0:02:30.1]} 13... Nd5 {[%clk 0:02:49.8]} 14.
Nd6+ {[%clk 0:02:21.7]} 14... Kf8 {[%clk 0:02:49.9]} 15. Rad1 {[%clk 0:02:19.9]}
15... Bd7 {[%clk 0:02:41.6]} 16. c4 {[%clk 0:02:11]} 16... Nxe3 {[%clk
0:02:40.5]} 17. Qxe3 {[%clk 0:02:11.9]} 17... c5 {[%clk 0:02:38.9]} 18. g3
{[%clk 0:01:44.2]} 18... Nc6 {[%clk 0:02:35.9]} 19. Be2 {[%clk 0:01:35]} 19...
Qe7 {[%clk 0:02:17.5]} 20. Nh4 {[%clk 0:01:30.9]} 20... Be8 {[%clk 0:02:17.9]}
21. Bf3 {[%clk 0:01:30.3]} 21... g5 {[%clk 0:02:08.4]} 22. Bxc6 {[%clk 0:01:28]}
1-0